bitfinex/quotes_ETHUSD_20260102
["timestamp","ask_amount","ask_price","bid_price","bid_amount"]
[1767351663746,5.3898027,3053.6,3053.1,0.001]
[1767351663969,5.3898027,3053.4,3052.2,0.001]
[1767351664264,5.3898027,3053.3,3052.2,5.13717334]
[1767351664617,5.3898027,3053.2,3052.4,5.13617334]
[1767351665020,3.27482315,3053.6,3052.4,5.13617334]
[1767351665218,5.3898027,3053.5,3052.4,5.13617334]
[1767351665415,6.2488027,3053.7,3052.5,5.13617334]
[1767351665621,6.2488027,3053.7,3052.7,5.13617334]
[1767351666342,6.2488027,3053.7,3052.6,0.88772564]
[1767351666343,6.2488027,3053.7,3053.1,5.13617334]
[1767351666822,5.3898027,3053.7,3053.1,5.13617334]
[1767351667024,6.34286294,3053.9,3053.1,5.13617334]
[1767351667234,5.3898027,3053.9,3053.1,5.13617334]
[1767351667647,6.2488027,3054.1,3053.1,5.13617334]
[1767351667852,5.3898027,3054.2,3053.1,5.13617334]
[1767351668143,5.3898027,3054.2,3053.3,5.13617334]
[1767351668544,5.3898027,3054.1,3053.3,5.13617334]
[1767351670752,3.27430072,3054.1,3053.3,5.13617334]
[1767351670939,5.3898027,3054.0,3053.3,5.13617334]
[1767351671252,6.25620497,3054.0,3053.3,5.13617334]
[1767351671441,5.3898027,3054.0,3053.3,5.13617334]
[1767351672355,5.3898027,3054.0,3053.3,5.16892478]
[1767351672524,5.3898027,3054.0,3053.3,5.13617334]
[1767351673235,5.3898027,3053.9,3053.3,5.13617334]
[1767351674953,8.66431463,3053.9,3053.3,5.13617334]
[1767351675258,5.3898027,3053.8,3053.3,5.13617334]
[1767351675458,5.3898027,3053.8,3053.1,5.13617334]
[1767351677732,5.3898027,3053.7,3053.1,5.13617334]
[1767351681438,5.3898027,3053.6,3053.1,5.13617334]
[1767351683261,3.2746234,3053.8,3053.3,5.13617334]
[1767351683262,5.3898027,3053.8,3053.3,5.13617334]
[1767351683769,0.002,3053.9,3053.7,5.13617334]
[1767351683959,0.002,3054.4,3053.6,3.74915111]
[1767351683960,5.3898027,3054.2,3053.8,5.13617334]
[1767351684171,5.3898027,3054.1,3053.8,5.13617334]
[1767351691370,5.28382597,3054.0,3053.5,5.23918903]
[1767351695676,5.28382597,3054.0,3053.6,5.23918903]
[1767351696389,3.27365533,3054.7,3053.7,5.23918903]
[1767351696571,5.28382597,3054.6,3053.9,3.74915111]
[1767351696774,5.28382597,3054.6,3054.0,5.23918903]
[1767351696979,5.28382597,3054.6,3053.8,5.23918903]
[1767351697482,5.28382597,3054.5,3053.8,5.23918903]
[1767351698572,5.28382597,3054.5,3053.8,5.84818744]
[1767351698774,5.28382597,3054.5,3053.8,5.23918903]
[1767351700692,8.55769609,3054.5,3053.8,5.23918903]
[1767351700984,5.28382597,3054.4,3053.9,0.001]
[1767351702693,5.28382597,3054.3,3053.6,5.23918903]
[1767351703787,5.28382597,3054.3,3053.4,6.09818903]
[1767351704090,5.28382597,3054.2,3053.5,0.6098189]
[1767351704492,5.28382597,3054.2,3053.5,5.84900793]
[1767351704690,5.28382597,3054.2,3053.5,5.23918903]
[1767351704994,5.28382597,3054.2,3053.0,0.001]
[1767351705184,5.28382597,3054.2,3053.2,3.74915111]
[1767351705376,5.28382597,3054.2,3053.2,8.98834014]
[1767351705576,5.28382597,3054.2,3053.3,5.23918903]
[1767351705780,5.28382597,3054.2,3053.4,0.35343376]
[1767351705977,5.28382597,3054.2,3053.3,5.23918903]
[1767351706182,3.27380812,3054.6,3053.1,0.859]
[1767351706183,5.28382597,3054.0,3053.1,5.23918903]
[1767351706479,5.28382597,3054.0,3053.0,5.24018903]
[1767351706675,5.28382597,3054.0,3053.0,3.75015111]
[1767351706878,5.28382597,3054.0,3053.1,5.70010414]
[1767351708406,5.28382597,3053.9,3053.3,5.23918903]
[1767351708610,8.55817809,3054.1,3053.5,5.23918903]
[1767351708902,5.28382597,3054.0,3053.5,5.23918903]
[1767351709468,5.28382597,3054.0,3053.3,5.23918903]
[1767351709688,5.28382597,3054.0,3053.5,5.23918903]
[1767351710198,5.28382597,3054.3,3053.5,5.23918903]
[1767351710872,5.28382597,3054.2,3053.5,5.23918903]
[1767351711069,5.28382597,3054.2,3053.4,4.64798512]
[1767351711070,0.859,3054.4,3053.9,5.23918903]
[1767351711392,8.55780414,3054.4,3053.9,5.23918903]
[1767351711802,5.28382597,3054.3,3053.9,5.23918903]
[1767351712398,3.27407916,3054.3,3053.9,5.23918903]
[1767351712598,5.28382597,3054.2,3053.9,5.23918903]
[1767351713614,5.28382597,3054.1,3053.4,0.89883401]
[1767351713913,5.28382597,3054.1,3053.5,5.85299133]
[1767351714115,5.28382597,3054.1,3053.5,0.6138023]
[1767351714290,5.28382597,3054.1,3053.2,5.23918903]
[1767351714488,5.28382597,3054.1,3053.2,6.09818903]
[1767351715023,5.28382597,3054.1,3053.2,5.23918903]
[1767351715209,5.28382597,3054.1,3053.2,6.09818903]
[1767351715696,5.28382597,3054.1,3053.3,3.74915111]
[1767351715906,5.10619096,3054.0,3053.4,5.70000414]
[1767351716213,5.10619096,3054.0,3053.4,5.23918903]
[1767351716721,5.10619096,3054.0,3053.2,5.35025361]
[1767351717718,5.10619096,3053.9,3053.2,5.35025361]
[1767351718604,5.10619096,3053.8,3053.1,0.001]
[1767351718921,5.10619096,3053.6,3053.1,0.001]
[1767351719291,0.859,3054.3,3053.3,5.35025361]
[1767351719618,5.10619096,3054.1,3053.3,5.35025361]
[1767351719816,5.10619096,3054.1,3053.2,3.74915111]
[1767351719817,5.10619096,3053.8,3053.1,0.001]
[1767351720824,5.10619096,3053.8,3053.3,5.35025361]
[1767351720989,5.10619096,3053.8,3053.5,5.35025361]
[1767351721390,5.10619096,3053.8,3053.4,0.90994047]
[1767351722318,5.10619096,3053.8,3053.2,5.35025361]
[1767351723406,5.10619096,3054.2,3053.2,5.35025361]
[1767351723606,5.10619096,3054.1,3053.2,5.35025361]
[1767351724024,5.10619096,3053.9,3053.2,5.35025361]
[1767351724201,5.10619096,3053.7,3053.1,0.001]
[1767351725510,5.10619096,3053.7,3053.1,5.35125361]
[1767351726135,3.27471967,3053.7,3053.1,5.35125361]
[1767351726303,5.10619096,3053.6,3053.1,5.35125361]
[1767351728326,5.10619096,3054.2,3053.4,5.35025361]
[1767351728514,5.10619096,3054.2,3053.5,5.88527897]
[1767351728836,5.10619096,3054.2,3053.5,5.35025361]
[1767351730367,5.10619096,3054.0,3053.5,5.35025361]
[1767351730805,3.27428702,3054.1,3053.5,5.35025361]
[1767351731004,5.10619096,3054.0,3053.5,5.35025361]
[1767351733236,0.002,3054.4,3053.5,5.35025361]
[1767351733237,5.10619096,3054.3,3053.5,5.35025361]
[1767351733434,5.94441726,3054.3,3053.5,5.35025361]
[1767351733739,5.10819096,3054.0,3053.5,5.35025361]
[1767351736136,5.10619096,3053.9,3053.5,5.35025361]
[1767351736836,5.10619096,3053.9,3053.2,5.35025361]
[1767351741564,5.10619096,3053.8,3053.2,5.35025361]
[1767351741721,5.10619096,3053.8,3053.2,5.88547897]
[1767351745145,5.10619096,3053.7,3053.2,5.35025361]
[1767351746637,5.41439808,3053.6,3053.2,5.35025361]
[1767351747645,5.41439808,3053.6,3053.1,0.001]
[1767351748048,5.41439808,3053.6,3053.1,5.03708713]
[1767351749553,5.41439808,3053.5,3053.1,0.001]
[1767351750126,5.41439808,3053.4,3053.0,0.001]
[1767351750454,5.41439808,3053.4,3053.1,5.03608713]
[1767351750659,8.6891321,3053.7,3053.1,5.03608713]
[1767351750832,5.41439808,3053.6,3053.1,5.03608713]
[1767351752554,5.41439808,3053.5,3053.1,5.03608713]
[1767351753730,5.41439808,3053.5,3052.6,0.86]
[1767351753731,6.28332443,3053.5,3052.7,0.859]
[1767351753930,6.28332443,3053.5,3052.7,5.89508713]
[1767351755040,6.28332443,3053.5,3052.7,5.03608713]
[1767351755430,4.14388109,3053.5,3052.6,5.03708713]
[1767351755633,5.41439808,3053.4,3052.6,5.03708713]
[1767351755833,5.41439808,3053.3,3052.6,5.54770238]
[1767351756730,5.41439808,3053.3,3052.6,0.51161525]
[1767351756930,5.41439808,3053.3,3052.6,5.03708713]
[1767351758456,5.41439808,3053.2,3052.6,5.03708713]
[1767351759627,3.27528403,3053.2,3052.6,5.03708713]
[1767351759834,5.41439808,3053.1,3052.6,5.03708713]
[1767351761460,5.41439808,3053.0,3052.5,0.001]
[1767351761760,5.41439808,3053.0,3052.2,5.03708713]
[1767351761761,5.41439808,3053.0,3052.2,0.001]
[1767351761964,5.41439808,3053.0,3052.2,5.03708713]
[1767351762348,7.89324615,3053.1,3052.0,0.001]
[1767351762349,5.41439808,3052.7,3052.0,0.001]
[1767351762534,7.41984936,3053.1,3052.0,0.001]
[1767351762535,7.89324615,3053.1,3052.1,5.03608713]
[1767351762863,7.07268998,3053.0,3052.1,5.03608713]
[1767351763063,0.8689653,3053.1,3052.1,5.03608713]
[1767351763261,6.28336338,3053.1,3052.1,5.03608713]
[1767351763953,9.55873028,3053.1,3052.1,5.03608713]
[1767351764265,5.41439808,3053.0,3052.1,5.03608713]
[1767351764453,5.41439808,3053.0,3052.0,0.001]
[1767351764454,5.41439808,3053.2,3052.3,5.03608713]
[1767351764632,5.41439808,3053.2,3052.3,5.62559584]
[1767351765035,5.41439808,3053.5,3052.3,5.62559584]
[1767351765458,8.68934168,3053.5,3052.3,5.62559584]
[1767351765678,5.41439808,3053.5,3052.4,5.03608713]
[1767351765964,5.41439808,3053.5,3052.6,5.03608713]
[1767351766165,5.41439808,3053.5,3052.5,1.26506473]
[1767351766166,5.41439808,3053.7,3052.8,5.03608713]
[1767351766533,3.27469181,3053.8,3052.8,5.03608713]
[1767351766734,0.002,3053.9,3052.8,5.03608713]
[1767351767047,8.69092,3053.9,3052.8,5.03608713]
[1767351767249,8.69092,3053.9,3053.0,5.03608713]
[1767351767451,0.002,3053.3,3053.0,5.03608713]
[1767351768838,5.41439808,3053.6,3053.0,5.03608713]
[1767351769455,8.69090029,3053.9,3053.0,5.03608713]
[1767351769659,5.41439808,3053.8,3053.0,5.03608713]
[1767351769864,5.41439808,3053.8,3053.0,5.59864671]
[1767351770875,5.41439808,3053.8,3053.0,5.03608713]
[1767351771584,3.27471591,3053.7,3053.0,5.03608713]
[1767351771790,5.41439808,3053.6,3053.0,5.03608713]
[1767351772383,5.41439808,3053.6,3052.7,5.89508713]
[1767351773376,5.41439808,3053.6,3052.7,5.03608713]
[1767351773676,5.41439808,3053.4,3052.7,5.78605193]
[1767351774361,5.41439808,3053.4,3052.7,5.03608713]
[1767351774566,5.41439808,3053.4,3052.5,5.03608713]
[1767351774879,5.41439808,3053.4,3052.0,3.74983882]
[1767351774880,5.41439808,3053.4,3052.2,0.859]
[1767351775082,5.41439808,3053.4,3052.3,5.03608713]
[1767351775460,5.41439808,3053.4,3052.5,0.001]
[1767351775661,5.41439808,3053.0,3052.3,5.03608713]
[1767351777880,4.96014986,3052.8,3052.3,5.03608713]
[1767351778450,4.96014986,3052.8,3052.1,5.27985479]
[1767351779984,4.96014986,3052.6,3052.1,5.27985479]
[1767351780771,8.23588124,3052.8,3052.1,5.27985479]
[1767351780973,4.96014986,3052.7,3052.1,5.27985479]
[1767351781566,1.15114034,3052.8,3052.1,5.27985479]
[1767351781768,4.96014986,3053.0,3052.2,5.27985479]
[1767351782075,4.96014986,3053.0,3052.3,0.03276217]
[1767351782275,4.96014986,3053.0,3052.4,5.27985479]
[1767351782581,4.96014986,3052.9,3052.4,5.27985479]
[1767351784472,8.2357281,3052.9,3052.4,5.28085479]
[1767351784663,4.96014986,3052.8,3052.4,0.001]
[1767351785771,4.96014986,3052.8,3051.9,0.001]
[1767351785967,4.96014986,3052.5,3051.9,5.28085479]
[1767351786190,3.27607606,3052.5,3051.9,5.28085479]
[1767351786394,4.96014986,3052.4,3051.9,5.28085479]
[1767351786996,5.78377245,3052.4,3051.9,5.27985479]
[1767351787202,4.96014986,3052.6,3051.9,5.27985479]
[1767351788274,4.96014986,3052.5,3051.9,5.27985479]
[1767351790575,4.96014986,3052.4,3051.9,5.27985479]
[1767351790886,4.96014986,3052.6,3051.9,5.27985479]
[1767351792981,4.96014986,3052.5,3051.9,5.28085479]
[1767351793303,4.96214986,3052.5,3051.9,5.28085479]
[1767351793876,6.11353554,3052.5,3051.8,0.001]
[1767351794706,4.96214986,3052.5,3051.9,5.27985479]
[1767351795305,0.002,3052.5,3051.9,5.27985479]
[1767351797618,4.96214986,3052.5,3051.9,5.27985479]
[1767351798113,4.96214986,3052.5,3051.8,0.001]
[1767351798313,4.96214986,3052.5,3051.8,5.28085479]
[1767351798485,4.96014986,3052.3,3051.8,5.28085479]
[1767351799113,0.002,3052.5,3051.8,5.28085479]
[1767351799316,0.86,3053.2,3051.8,0.03376645]
[1767351799317,4.96014986,3052.8,3051.8,0.03376645]
[1767351799517,4.96014986,3052.8,3051.9,5.27985479]
[1767351799813,4.96014986,3052.8,3052.1,5.27985479]
[1767351801197,0.002,3052.5,3052.1,5.27985479]
[1767351801707,4.9093317,3052.6,3052.1,5.27985479]
[1767351801907,4.96014986,3053.0,3052.1,5.27985479]
[1767351804126,7.02568817,3053.6,3052.5,4.56412374]
[1767351804127,4.96014986,3053.5,3052.5,4.56412374]
[1767351804287,4.96014986,3053.5,3052.7,4.56412374]
[1767351808723,4.96214986,3053.5,3052.7,4.56412374]
[1767351811102,3.27695463,3053.5,3052.7,4.56412374]
[1767351811322,5.17681722,3053.4,3052.7,4.56412374]
[1767351811523,5.17681722,3053.4,3052.8,5.09070941]
[1767351812421,5.17681722,3053.4,3052.9,5.31372464]
[1767351813617,5.17681722,3053.4,3052.9,0.859]
[1767351814215,5.17681722,3053.4,3052.9,5.29317183]
[1767351816826,5.17881722,3053.4,3052.9,5.29317183]
[1767351817041,5.17681722,3053.3,3052.8,0.859]
[1767351817326,5.17681722,3053.3,3052.5,4.40422289]
[1767351817523,5.17681722,3053.0,3052.3,5.08829418]
[1767351817832,3.74935898,3052.9,3052.1,5.08829418]
[1767351818008,5.55175312,3052.8,3052.1,5.08829418]
[1767351818205,5.55175312,3052.8,3052.0,0.001]
[1767351818597,5.17681722,3052.6,3052.0,5.08929418]
[1767351819225,5.17681722,3052.5,3052.0,5.08929418]
[1767351819394,5.17681722,3052.5,3052.0,0.001]
[1767351819935,5.17681722,3052.5,3052.0,5.08929418]
[1767351820622,5.17681722,3052.5,3052.0,5.5984236]
[1767351824608,5.17681722,3052.4,3052.0,0.001]
[1767351829222,5.17681722,3052.2,3051.8,0.001]
[1767351831340,3.27634408,3052.2,3051.8,0.001]
[1767351831512,3.27634408,3052.2,3051.3,5.08929418]
[1767351831513,5.17681722,3052.1,3051.3,5.08929418]
[1767351831712,5.17681722,3052.1,3051.4,5.5972236]
[1767351832163,5.17681722,3052.0,3051.4,5.5972236]
[1767351833726,5.17681722,3052.0,3051.4,5.5982236]
[1767351836128,5.16902837,3051.9,3051.4,5.08929418]
[1767351836333,5.16902837,3051.9,3051.4,0.001]
[1767351836532,5.16902837,3051.7,3051.3,0.001]
[1767351836728,3.27666428,3051.9,3051.2,5.10981636]
[1767351836729,8.91838735,3051.6,3051.2,5.10981636]
[1767351837059,0.89183874,3051.6,3051.1,5.10495951]
[1767351837260,5.16902837,3051.7,3051.1,5.10495951]
[1767351837635,5.16902837,3051.7,3051.1,0.001]
[1767351839640,5.16902837,3051.6,3051.1,0.001]
[1767351840950,0.86,3051.9,3051.1,5.08479857]
[1767351840951,5.16902837,3051.9,3051.1,5.08479857]
[1767351842634,8.44573122,3051.9,3051.1,5.08479857]
[1767351842836,5.16902837,3051.8,3051.1,5.08479857]
[1767351843023,5.16902837,3052.2,3051.1,5.59337843]
[1767351843222,5.16902837,3052.2,3051.1,5.08479857]
[1767351843223,5.16902837,3052.1,3051.1,5.08479857]
[1767351843453,5.16902837,3052.1,3051.2,5.06432802]
[1767351844963,5.16902837,3051.9,3051.2,5.06432802]
[1767351846155,5.16902837,3051.9,3051.1,0.001]
[1767351846156,5.16902837,3051.8,3051.1,0.001]
[1767351847541,5.16902837,3051.4,3051.1,0.001]
[1767351847857,5.16902837,3051.4,3050.7,0.001]
[1767351847858,5.68593121,3051.4,3050.7,0.001]
[1767351848161,5.68593121,3051.4,3049.6,0.16]
[1767351848162,5.16902837,3050.5,3049.4,4.48681057]
[1767351848332,0.51690284,3051.4,3048.9,3.28084823]
[1767351848333,5.16902837,3050.8,3049.9,4.48681057]
[1767351848536,5.16902837,3050.8,3050.1,4.48681057]
[1767351848930,5.16902837,3050.8,3050.0,0.82361696]
[1767351848931,5.16902837,3051.2,3050.2,3.74935898]
[1767351849130,5.16902837,3051.2,3050.3,4.48744254]
[1767351849455,5.16902837,3051.2,3050.4,3.74935898]
[1767351849660,5.16902837,3051.5,3050.5,4.86237844]
[1767351849855,5.16902837,3051.5,3050.7,4.47643859]
[1767351850166,5.16902837,3051.4,3049.8,0.001]
[1767351850367,3.27717768,3051.5,3049.8,4.85237449]
[1767351850368,5.16902837,3050.8,3049.8,4.85237449]
[1767351850867,5.16902837,3051.2,3050.0,4.85137449]
[1767351851069,5.16902837,3051.2,3050.2,4.84661089]
[1767351852246,5.16902837,3051.0,3050.2,4.84661089]
[1767351854161,5.16902837,3050.8,3050.2,4.84661089]
[1767351854662,5.16902837,3050.8,3049.9,4.83260635]
[1767351854834,5.16902837,3050.8,3050.0,5.39749096]
[1767351855259,5.16902837,3050.8,3050.0,4.82813032]
[1767351855646,5.16902837,3050.8,3050.1,0.001]
[1767351856068,4.60935898,3050.7,3050.1,0.001]
[1767351856237,5.16902837,3050.4,3049.8,4.83061197]
[1767351856883,5.16902837,3050.4,3049.4,4.83061197]
[1767351857052,5.16902837,3050.3,3049.4,5.39967317]
[1767351857570,5.16902837,3050.2,3049.4,4.83061197]
[1767351857988,6.02902837,3050.2,3049.4,4.83061197]
[1767351858141,5.16902837,3049.6,3048.9,4.82709006]
[1767351858942,5.16902837,3050.0,3048.9,4.82709006]
[1767351859148,5.16902837,3050.0,3049.1,4.8204428]
[1767351859555,5.16902837,3049.8,3049.1,4.8204428]
[1767351859964,0.86,3050.2,3049.4,4.82083684]
[1767351860168,5.16902837,3050.4,3049.9,4.82083684]
[1767351860568,5.16902837,3050.4,3049.5,4.82083684]
[1767351860864,5.16902837,3050.4,3049.7,4.82083684]
[1767351861270,5.16902837,3050.3,3049.7,4.82083684]
[1767351861770,5.16902837,3050.3,3049.1,4.13961589]
[1767351861771,5.16902837,3050.3,3049.3,4.81521633]
[1767351862359,5.16902837,3050.0,3049.3,4.81521633]
[1767351862572,5.16902837,3049.9,3049.3,4.81521633]
[1767351862778,6.06086711,3049.9,3049.4,0.001]
[1767351862976,6.06086711,3049.9,3048.9,0.001]
[1767351863165,5.16902837,3049.3,3048.9,0.001]
[1767351863346,0.86,3049.5,3048.9,4.80063644]
[1767351863546,5.16902837,3049.5,3048.9,4.80063644]
[1767351864267,5.16902837,3049.4,3048.9,4.80063644]
[1767351864574,5.16902837,3049.4,3048.9,0.001]
[1767351865751,5.11533501,3049.7,3049.0,4.7839654]
[1767351866655,4.77237268,3050.0,3049.0,4.7839654]
[1767351867675,3.27853546,3050.2,3049.1,4.76872263]
[1767351867869,8.9107563,3050.3,3049.1,4.76872263]
[1767351868087,4.77237268,3050.2,3049.1,4.76872263]
[1767351868266,4.77237268,3050.2,3049.3,4.76375139]
[1767351869167,4.77237268,3050.1,3049.3,4.76375139]
[1767351871558,3.27754223,3051.1,3049.3,4.76375139]
[1767351871559,4.77237268,3051.3,3049.3,4.76375139]
[1767351871760,5.63237268,3051.2,3049.3,4.76375139]
[1767351871960,5.63237268,3051.2,3049.3,8.04415102]
[1767351872175,4.77237268,3051.0,3049.5,4.74440899]
[1767351872755,4.77237268,3051.0,3049.5,5.60440899]
[1767351873494,4.77237268,3050.7,3049.6,4.73970624]
[1767351874557,4.77237268,3050.7,3049.6,5.59970624]
[1767351876893,4.77237268,3050.6,3049.6,5.59970624]
[1767351877090,4.77237268,3050.6,3049.8,4.72727657]
[1767351878792,4.77237268,3050.5,3049.8,4.72727657]
[1767351882093,4.77237268,3050.5,3049.4,5.55975452]
[1767351882094,4.77237268,3050.4,3049.4,5.55975452]
[1767351882398,4.77237268,3050.4,3049.4,4.69975452]
[1767351883408,4.77237268,3050.2,3049.4,4.69975452]
[1767351883698,4.77237268,3050.0,3049.4,4.69975452]
[1767351884601,4.77237268,3050.0,3049.3,0.001]
[1767351885304,4.77237268,3050.0,3049.3,4.68838182]
[1767351885676,4.13829614,3050.4,3049.3,4.68838182]
[1767351885677,5.63237268,3050.3,3049.3,4.68838182]
[1767351885871,5.63237268,3050.3,3049.5,4.68738182]
[1767351887689,4.13839677,3050.3,3049.5,4.68738182]
[1767351888025,4.77237268,3050.2,3049.5,4.68738182]
[1767351890214,4.77237268,3050.1,3049.5,4.68738182]
[1767351891811,4.77237268,3050.0,3049.4,0.001]
[1767351892012,4.77237268,3049.8,3049.4,0.001]
[1767351892210,3.27865099,3050.1,3049.4,4.65016057]
[1767351892416,4.77237268,3050.0,3049.4,4.65016057]
[1767351893799,4.77237268,3050.2,3049.4,4.65016057]
[1767351895687,4.77237268,3050.2,3049.5,0.03279226]
[1767351896010,4.77237268,3050.2,3049.6,4.63845439]
[1767351897217,4.64221699,3050.4,3049.6,4.63845439]
[1767351897416,7.92053451,3050.4,3049.6,4.63845439]
[1767351897595,4.64221699,3050.3,3049.6,4.63845439]
[1767351898105,4.64221699,3050.4,3049.6,5.10239983]
[1767351898719,4.64221699,3050.4,3049.6,4.63845439]
[1767351899397,4.64221699,3050.4,3049.4,0.001]
[1767351899608,4.64221699,3050.4,3049.5,4.62139528]
[1767351900183,4.64221699,3050.2,3049.5,4.62139528]
[1767351901618,3.27807855,3050.6,3049.5,4.62139528]
[1767351901795,4.64221699,3050.5,3049.8,4.61483364]
[1767351901995,4.63622287,3050.5,3049.7,3.75735583]
[1767351902204,4.62023851,3050.5,3050.1,4.6176167]
[1767351904122,4.62023851,3050.5,3049.7,4.62733936]
[1767351904324,0.002,3050.7,3049.6,1.69797511]
[1767351904325,0.002,3050.7,3050.0,4.62733936]
[1767351904528,0.002,3050.7,3050.2,4.62733936]
[1767351905013,4.64421699,3050.7,3050.1,0.83846952]
[1767351905322,4.64421699,3050.5,3050.0,4.62426953]
[1767351906009,0.002,3050.5,3050.0,4.62426953]
[1767351906319,4.64421699,3050.7,3049.8,3.2788966]
[1767351906491,4.64421699,3050.7,3049.9,4.61924127]
[1767351906986,4.64421699,3050.7,3050.0,4.61627881]
[1767351907209,4.64421699,3050.7,3050.2,4.61627881]
[1767351907210,0.002,3050.7,3050.2,4.61627881]
[1767351908495,4.64221699,3050.9,3050.1,0.83736346]
[1767351908721,4.64221699,3050.9,3050.2,4.61130713]
[1767351910317,4.64221699,3051.1,3050.2,4.61130713]
[1767351910816,4.64221699,3051.1,3050.3,4.60545928]
[1767351911022,4.63522384,3051.1,3050.4,1.16411827]
[1767351911324,4.64221699,3051.6,3050.8,4.61057102]
[1767351913223,4.64221699,3051.5,3050.8,4.61057102]
[1767351913629,4.47937837,3051.3,3050.8,4.61057102]
[1767351916302,4.64221699,3051.6,3050.8,4.61057102]
[1767351916498,4.64221699,3051.6,3051.0,4.75578416]
[1767351917008,4.64221699,3051.6,3051.3,0.02018897]
[1767351917420,4.64221699,3051.6,3051.3,4.76070927]
[1767351917626,4.64421699,3051.8,3051.3,4.76070927]
[1767351919299,3.27624252,3052.3,3051.3,4.76070927]
[1767351919300,3.75735583,3052.7,3051.3,0.4962599]
[1767351919499,4.64021894,3052.3,3051.3,0.88018897]
[1767351919929,4.64021894,3052.3,3051.3,4.64354366]
[1767351920128,4.64221699,3052.1,3051.3,4.64354366]
[1767351920898,4.64221699,3052.1,3051.3,0.02018897]
[1767351921101,4.64221699,3052.1,3051.4,4.60691146]
[1767351921299,4.64221699,3052.1,3051.6,4.60691146]
[1767351922740,3.2758128,3052.7,3051.6,4.60691146]
[1767351922741,3.27546675,3053.0,3051.6,2.17728326]
[1767351923034,4.64221699,3052.8,3051.7,1.31728326]
[1767351924444,6.55157728,3052.7,3051.7,1.31728326]
[1767351924606,5.29737472,3052.6,3051.7,1.31728326]
[1767351926803,4.76374485,3052.5,3051.7,1.31728326]
[1767351931350,8.03974847,3052.5,3051.7,1.31728326]
[1767351931647,4.76374485,3052.5,3051.7,1.31728326]
[1767351932213,4.76374485,3052.4,3051.7,1.31728326]
[1767351932414,4.76374485,3052.1,3051.5,0.001]
[1767351933953,4.76374485,3052.1,3051.5,1.18301462]
[1767351936431,4.76374485,3052.0,3051.5,1.18301462]
[1767351937243,4.76374485,3052.1,3051.5,1.18301462]
[1767351937543,4.76374485,3052.0,3051.5,1.18301462]
[1767351938310,4.76374485,3051.9,3051.3,1.1290435]
[1767351938544,4.76374485,3051.7,3050.7,1.1300435]
[1767351938747,4.76374485,3051.5,3050.9,1.1300435]
[1767351938914,5.61530842,3051.5,3050.4,1.12188717]
[1767351939243,5.61530842,3051.5,3050.6,1.12188717]
[1767351939244,4.76374485,3051.5,3050.6,1.12188717]
[1767351940044,4.76374485,3051.5,3050.7,1.11381944]
[1767351940726,4.76374485,3051.5,3050.9,1.11381944]
[1767351941723,4.76374485,3051.5,3051.1,1.10583691]
[1767351942413,4.76374485,3052.1,3051.1,1.10583691]
[1767351942616,4.76374485,3052.1,3050.3,0.001]
[1767351942617,4.76274583,3051.5,3050.8,1.09891853]
[1767351942817,4.27474485,3051.3,3050.8,1.09891853]
[1767351943067,3.62186276,3051.3,3050.8,1.09891853]
[1767351947645,3.62186276,3051.3,3050.6,2.2089793]
[1767351947646,4.76374485,3051.3,3050.6,2.2089793]
[1767351947844,4.76374485,3051.3,3050.6,2.51587723]
[1767351948255,4.76374485,3051.1,3050.6,2.51587723]
[1767351957869,4.57176772,3050.9,3050.6,0.001]
[1767351966477,4.57176772,3050.9,3050.2,2.09591917]
[1767351966478,4.57176772,3050.7,3050.2,2.09591917]
[1767351966676,4.57176772,3050.5,3050.2,0.001]
[1767351967285,3.27793852,3050.7,3049.9,0.001]
[1767351967286,4.57176772,3050.3,3049.9,0.001]
[1767351967585,7.41587704,3050.7,3049.4,0.001]
[1767351967586,4.57176772,3049.9,3049.4,0.001]
[1767351967752,4.5707687,3049.7,3049.4,0.001]
[1767351968261,4.5707687,3049.7,3049.4,2.09384499]
[1767351970386,4.5707687,3049.7,3049.4,2.30332949]
[1767351974398,4.5707687,3049.7,3049.3,0.001]
[1767351976292,4.5707687,3049.7,3049.3,2.05329867]
[1767351977582,3.27874495,3050.0,3049.3,2.05329867]
[1767351977780,7.85051267,3050.0,3049.3,2.05329867]
[1767351978002,4.57176772,3049.9,3049.3,2.05329867]
[1767351978297,4.57176772,3049.9,3049.3,2.25872854]
[1767351979203,4.57176772,3049.8,3049.3,2.25872854]
[1767351979771,4.57176772,3049.8,3049.3,2.05329867]
[1767351981697,3.27895119,3049.8,3049.3,0.001]
[1767351982001,3.27895119,3049.8,3049.1,0.001]
[1767351982002,4.57176772,3049.5,3049.1,0.001]
[1767351982600,4.57176772,3049.5,3049.3,0.001]
[1767351983998,4.57176772,3049.4,3049.3,0.001]
[1767351984204,4.57176772,3049.4,3049.1,0.001]
[1767351985398,4.57176772,3049.4,3049.0,0.001]
[1767351985803,4.57176772,3049.4,3049.0,1.94691717]
[1767351986021,7.85110165,3049.4,3049.0,1.94691717]
[1767351986305,3.27933393,3049.4,3049.0,1.94691717]
[1767351986507,4.69755525,3049.3,3049.0,1.94691717]
[1767351987404,4.69755525,3049.3,3049.0,0.001]
[1767351988991,4.69755525,3049.3,3049.0,1.87984403]
[1767351989310,4.39945002,3049.2,3049.0,0.001]
[1767351989617,5.49528494,3049.2,3048.9,0.001]
[1767351989816,4.39945002,3049.2,3048.9,0.001]
[1767351990111,4.39945002,3049.2,3048.9,1.87015605]
[1767351990307,4.39945002,3049.2,3049.0,0.001]
[1767351990512,4.39945002,3049.2,3048.9,0.001]
[1767351990912,7.67900605,3049.2,3048.9,0.001]
[1767351991088,7.67900605,3049.2,3048.7,1.87015605]
[1767351991089,4.39945002,3049.1,3048.7,1.87015605]
[1767351991412,4.39945002,3049.1,3048.6,0.001]
[1767351992410,4.39945002,3049.0,3048.6,0.001]
[1767351992809,4.38650802,3049.0,3048.6,0.001]
[1767351994292,3.27937056,3049.4,3048.7,1.83768668]
[1767351994293,5.26045002,3049.4,3048.7,1.83768668]
[1767351995088,4.39945002,3049.4,3048.7,1.83768668]
[1767351995987,0.861,3049.8,3048.9,1.81775941]
[1767351996204,4.40145002,3049.7,3049.1,1.81775941]
[1767351999203,7.68047145,3049.7,3049.1,1.81775941]
[1767352000126,4.39945002,3049.9,3049.3,1.77219684]
[1767352000598,4.398451,3049.8,3049.1,1.77319586]
[1767352000801,4.398451,3049.8,3049.3,1.77319586]
[1767352001306,4.398451,3049.8,3049.1,1.76382456]
[1767352002527,4.39945002,3049.6,3049.1,1.76382456]
[1767352003795,4.39945002,3049.6,3049.0,0.001]
[1767352004192,4.39945002,3049.6,3049.0,1.73741693]
[1767352004511,4.39945002,3049.5,3049.0,1.73741693]
[1767352004911,4.39945002,3049.5,3048.8,1.72755277]
[1767352005115,4.39945002,3049.3,3048.6,1.72955277]
[1767352006223,4.39945002,3049.3,3049.0,0.001]
[1767352006428,4.39945002,3049.3,3048.6,0.001]